Cogmind - Beta 14 @@@ ROGUE MODE // 2025.03.18 @ 16:04:16 Player: G4-R3D Result: Destroyed by M Guard with Cooled Nova Cannon Performance ------------- Evolutions (9) 4500 Regions Visited (27) 5400 Robots Destroyed (42) 210 Value Destroyed (2023) 2023 Prototype IDs (73) 1460 Alien Tech Used (6) 1200 Bonus (12460) 12460 TOTAL SCORE: 27253 Bonus ------- High Alert Combat Kills 8 Follower Combat Kills 1271 Network Hubs Disabled 200 Registered with UFD 300 Met Zhirov 300 Built Enhanced Grunts 300 A7 Reached Mainframe 300 Hacked Protovariant 500 Acquired SGEMP 2000 Delivered SGEMP 2000 Met MAIN.C 5000 Hacked MAIN.C 300 Friendly Fire -19 Cogmind --------- Core Integrity 0/1600 Matter 102/300 Energy 98/100 System Corruption 0% Temperature Cool (9) Movement Core (50) Location -1/Command Parts ------- > --- POWER (1) -------- (None) > --- PROPULSION (8) --- (None) > --- UTILITY (14) ----- Experimental Optical Array Improved Hacking Suite Advanced Hacking Suite > --- WEAPON (2) ------- Nanosword > --- INVENTORY (5) ---- Stasis Canceller Enhanced Nova Cannon Hypervelocity Multirail Z-bomb Delivery System Peak State ------------ > --- POWER ------------ Light Quantum Reactor > --- PROPULSION ------- Impulse Thruster Impulse Thruster Cooled Field Propulsion Drive Cooled Field Propulsion Drive Improved Diametric Drive Improved Diametric Drive Impulse Thruster Array > --- UTILITY ---------- Advanced Power Amplifier Medium Storage Unit Advanced Weight Redist. System Triangulator Experimental Optical Array ECM Suite Improved Reaction Control System Medium Regenerative Plating Antimissile System Improved Hacking Suite Advanced Hacking Suite Advanced Hacking Suite Thief Drone Bay Spacefold Activator > --- WEAPON ----------- Advanced Remote Datajack Nanosword > --- INVENTORY -------- Heavy Antimatter Reactor Light Quantum Reactor Advanced Weight Redist. System Stasis Canceller Transdimensional Reconstructor Enhanced Nova Cannon Hypervelocity Multirail Z-bomb Delivery System Sigix Terminator [Rating: 183] Favorites ----------- Power Improved Deuterium Engine Engine Improved Deuterium Engine Power Core Neutrino Core Reactor Heavy Antimatter Reactor Propulsion Cooled Field Propulsion Drive Flight Unit Cooled Field Propulsion Drive Utility Hacking Suite Device Advanced Weight Redist. System Storage Medium Storage Unit Processor Advanced Terrain Scan Processor Hackware Hacking Suite Protection Medium Regenerative Plating Artifact Spacefold Activator Weapon Remote Datajack Energy Cannon Enhanced Nova Cannon Ballistic Gun Assault Rifle Ballistic Cannon Mini Assault Cannon Launcher Rocket Array Special Weapon Remote Datajack Impact Weapon Power Maul Slashing Weapon Scythe Piercing Weapon Enhanced Force Lance Special Melee Weapon Advanced Datajack Build | -11 -10 -10 -10 -8 -7 -7 -7 -7 -7 -7 -5 -5 -5 -5 -4 -4 -4 -4 -4 -4 -3 -3 -2 -2 -2 -1 -1 ------- Run | Yrd Mat Min Sub Mat Fac Was Fac Sto Rec Scr Fac Upp Upp Zhi Pro Fac Ext Cet Arc Hub Res Tes Res Qua Sec Acc Com Slots Evolved 18 | . . . . 4 2 . . . . . 4 . . . . 2 . . . . 2 . 2 . . 2 . Power . | . . . . . . . . . . . . . . . . . . . . . . . . . . . . Propulsion 6 | . . . . 2 . . . . . . . . . . . 1 . . . . 1 . 2 . . . . Utility 12 | . . . . 2 2 . . . . . 4 . . . . 1 . . . . 1 . . . . 2 . Weapon . | . . . . . . . . . . . . . . . . . . . . . . . . . . . . Parts Attached 157 | 3 1 2 . 19 5 5 1 3 2 2 12 . . 2 3 4 7 3 6 3 18 17 9 7 10 3 10 Power 13 | . . . . 1 1 . 1 1 . . . . . . . . 1 1 . 1 2 . 1 . . . 3 Engine 4 | . . . . 1 1 . 1 1 . . . . . . . . . . . . . . . . . . . Core 1 | . . . . . . . . . . . . . . . . . . 1 . . . . . . . . . Reactor 8 | . . . . . . . . . . . . . . . . . 1 . . 1 2 . 1 . . . 3 Propulsion 39 | . 1 . . 9 2 3 . 1 . . 3 . . . 1 1 1 . . 2 4 5 3 2 1 . . Treads . | . . . . . . . . . . . . . . . . . . . . . . . . . . . . Leg . | . . . . . . . . . . . . . . . . . . . . . . . . . . . . Wheel . | . . . . . . . . . . . . . . . . . . . . . . . . . . . . Hover . | . . . . . . . . . . . . . . . . . . . . . . . . . . . . Flight 39 | . 1 . . 9 2 3 . 1 . . 3 . . . 1 1 1 . . 2 4 5 3 2 1 . . Utility 61 | 1 . 1 . 6 2 2 . . 2 2 7 . . 1 . 3 5 . 5 . 5 4 1 3 4 3 4 Device 27 | 1 . 1 . 1 1 1 . . . 1 3 . . . . 1 1 . 2 . 4 2 1 1 . 2 4 Storage 2 | . . . . . . . . . . . 1 . . . . . . . . . 1 . . . . . . Processor 6 | . . . . 1 1 . . . . . 1 . . . . . . . . . . 1 . 1 . 1 . Hackware 16 | . . . . 3 . . . . 1 1 1 . . 1 . 2 3 . 3 . . 1 . . . . . Protection 5 | . . . . 1 . 1 . . 1 . 1 . . . . . 1 . . . . . . . . . . Artifact 5 | . . . . . . . . . . . . . . . . . . . . . . . . 1 4 . . Weapon 44 | 2 . 1 . 3 . . . 1 . . 2 . . 1 2 . . 2 1 . 7 8 4 2 5 . 3 Energy Gun . | . . . . . . . . . . . . . . . . . . . . . . . . . . . . Energy Cannon 3 | . . . . . . . . . . . . . . . . . . . . . . 1 1 . 1 . . Ballistic Gun 7 | 2 . . . . . . . . . . . . . . . . . . . . . 2 1 1 1 . . Ballistic Cannon 3 | . . . . 2 . . . 1 . . . . . . . . . . . . . . . . . . . Launcher 6 | . . . . . . . . . . . . . . . 1 . . 1 . . 1 1 . . . . 2 Special Weapon 7 | . . 1 . . . . . . . . 1 . . . . . . 1 . . 3 . . . 1 . . Impact Weapon 3 | . . . . . . . . . . . . . . 1 1 . . . . . 1 . . . . . . Slashing Weapon 7 | . . . . 1 . . . . . . 1 . . . . . . . 1 . . 1 1 . 1 . 1 Piercing Weapon 5 | . . . . . . . . . . . . . . . . . . . . . 2 3 . . . . . Special Melee Weapon 3 | . . . . . . . . . . . . . . . . . . . . . . . 1 1 1 . . Unidentified Prototypes 23 | . . 1 . . . . . 2 . . 1 . . 1 1 . 2 . . 1 2 5 1 2 3 . 1 Corrupted Parts 2 | . . . . . . . . . 1 . . . . . . . 1 . . . . . . . . . . System Corruption 10 | . . . . . . . . . 4 . . . . . . . 6 . . . . . . . . . . Parts Lost 49 | . . . 1 8 . . . 3 1 . . . . . 2 . 4 1 . 5 . 2 2 2 . . 18 Power 6 | . . . . 1 . . . . . . . . . . . . 1 1 . 1 . . . . . . 2 Propulsion 19 | . . . 1 4 . . . 3 . . . . . . 1 . . . . 1 . . . 2 . . 7 Utility 22 | . . . . 2 . . . . 1 . . . . . 1 . 3 . . 2 . 2 2 . . . 9 Weapon 2 | . . . . 1 . . . . . . . . . . . . . . . 1 . . . . . . . Highest Loss Streak 18 | . . . 1 4 . . . 1 1 . . . . . 2 . 2 1 . 3 . 2 1 1 . . 18 To Critical Strikes . | . . . . . . . . . . . . . . . . . . . . . . . . . . . . Average Slot Usage (%) 82 | . 42 43 36 61 92 100 100 97 81 83 88 94 94 92 91 87 85 88 89 80 87 88 88 94 91 95 81 Engine 2 | . . . . 3 . 7 7 7 7 7 5 5 5 5 5 5 . . . . . . . . . . . Reactor 1 | . . . . . . . . . . . . . . . . . 4 . . 4 3 4 4 4 4 4 3 Flight 19 | . 14 14 8 20 30 30 30 27 15 15 17 17 17 17 15 15 15 15 15 15 20 22 26 29 26 28 22 Device 14 | . 14 14 14 5 15 15 15 15 15 15 16 17 17 13 11 14 9 10 8 5 16 18 17 17 17 19 19 Storage 2 | . . . . . . . . . . . 2 5 5 5 5 5 5 5 5 5 4 4 4 4 4 4 3 Processor 2 | . . . . 3 7 . . . . . 4 5 5 5 5 5 4 . . . . . 4 7 4 7 5 Hackware 22 | . . . . 14 23 23 23 23 23 29 21 23 23 25 27 25 32 36 37 35 28 25 18 17 17 16 13 Protection 3 | . . . . 5 . 7 7 7 4 . 4 5 5 5 5 5 1 5 5 5 4 4 4 4 4 4 3 Ballistic Gun 1 | . 14 14 14 1 . . . . . . . . . . . . . . . . . 2 1 . . . . Ballistic Cannon 2 | . . . . 5 7 7 7 7 7 7 3 . . . . . . . . . . . . . . . . Special Weapon 1 | . . 1 . . . . . . . . 1 5 5 5 5 5 5 4 5 2 2 . . . 1 4 3 Slashing Weapon 3 | . . . . 2 7 7 7 7 7 7 5 5 5 3 . . . . 3 5 . . 2 4 3 4 4 Peak Build Rating 183 | 5 5 12 6 28 38 48 51 52 43 43 72 70 70 73 74 91 106 105 109 110 139 149 158 177 166 178 183 Average Rating 81 | 3 4 6 5 17 33 44 49 49 41 42 65 70 70 70 72 88 97 102 107 97 119 134 150 157 156 176 148 On Entrance 73 | . 4 5 6 5 25 38 48 51 43 40 43 70 70 70 73 73 91 104 102 109 83 131 144 154 144 164 178 Naked Turns . | . . . . . . . . . . . . . . . . . . . . . . . . . . . . Heaviest Build 60 | 3 3 4 3 14 12 16 23 23 19 17 31 30 30 30 29 30 37 41 41 39 53 52 56 52 52 52 60 Greatest Support 79 | 3 4 4 4 16 19 24 24 31 19 19 33 32 32 32 35 40 40 40 40 43 53 53 79 67 60 64 67 Greatest Overweight (x) 9 | . . . . 2 . . . 1 . . . . . . . . 9 1 1 . . 1 . . . . 1 Average Overweight (x) . | . . . . . . . . . . . . . . . . . . . . . . . . . . . . Largest Inventory Capacity 10 | 5 5 5 5 5 5 5 5 5 5 5 10 10 10 10 10 10 10 10 10 10 10 10 10 10 10 10 10 Average Capacity 7 | 5 5 5 5 5 5 5 5 5 5 5 7 10 10 10 10 10 10 10 10 10 10 10 10 10 10 10 9 Most Carried 10 | 3 3 5 5 5 5 5 5 5 5 5 8 8 8 10 10 8 10 10 10 10 10 10 10 10 10 10 10 Average Carried 7 | . 3 3 4 4 4 4 5 5 5 4 5 8 8 8 9 6 7 9 9 9 8 9 9 9 10 9 8 Final Capacity 10 | 5 5 5 5 5 5 5 5 5 5 5 10 10 10 10 10 10 10 10 10 10 10 10 10 10 10 10 5 Final Carried 10 | 3 3 5 5 5 5 5 5 5 5 5 8 8 8 9 9 6 10 9 10 9 10 10 10 10 10 10 4 Class Distribution -------------------- 50% | Hacker-Sprinter 30% | Wizard-Sprinter 11% | Mutant 4% | Wizard-Mutant Dominant Class ---------------- Mutant | -10/Materials Mutant | -10/Mines Mutant | -10/Subcaves Hacker-Sprinter | -8/Materials Hacker-Sprinter | -7/Factory Hacker-Sprinter | -7/Waste Hacker-Sprinter | -7/Factory Hacker-Sprinter | -7/Storage Hacker-Sprinter | -7/Recycling Hacker-Sprinter | -7/Scraptown Hacker-Sprinter | -5/Factory Hacker-Sprinter | -5/Upper Caves Hacker-Sprinter | -5/Upper Caves Hacker-Sprinter | -5/Zhirov Hacker-Sprinter | -4/Proximity Caves Wizard-Sprinter | -4/Factory Wizard-Sprinter | -4/Extension Wizard-Sprinter | -4/Cetus Wizard-Sprinter | -4/Archives Wizard-Mutant | -4/Hub_04(d) Wizard-Sprinter | -3/Research Wizard-Sprinter | -3/Testing Hacker-Sprinter | -2/Research Hacker-Sprinter | -2/Quarantine Hacker-Sprinter | -2/Section 7 Hacker-Sprinter | -1/Access Hacker-Sprinter | -1/Command Resources | -11 -10 -10 -10 -8 -7 -7 -7 -7 -7 -7 -5 -5 -5 -5 -4 -4 -4 -4 -4 -4 -3 -3 -2 -2 -2 -1 -1 ----------- Run | Yrd Mat Min Sub Mat Fac Was Fac Sto Rec Scr Fac Upp Upp Zhi Pro Fac Ext Cet Arc Hub Res Tes Res Qua Sec Acc Com Matter Collected 2445 | 252 10 18 9 159 11 240 13 . 58 20 18 57 . . 150 . 136 145 122 10 199 430 190 73 122 . 3 Remotely . | . . . . . . . . . . . . . . . . . . . . . . . . . . . . Salvage Created 1743 | 98 . 18 . 165 . . 13 . . . 18 . . . . . 137 12 215 91 211 430 190 . 145 . . Parts 110 | 8 . 4 . 20 . . 1 . . . 2 . . . . . 2 1 22 2 13 21 7 . 7 . . Haulers Intercepted 1 | . . . . . . . . . . . . . . . . . . . . 1 . . . . . . . Recyclers Shooed 1 | . . . . 1 . . . . . . . . . . . . . . . . . . . . . . . Parts Field Recycled . | . . . . . . . . . . . . . . . . . . . . . . . . . . . . Retrieved Matter . | . . . . . . . . . . . . . . . . . . . . . . . . . . . . Parts Self-Destructed 11 | . . . . . . . . . . . . . . . 11 . . . . . . . . . . . . Prevented . | . . . . . . . . . . . . . . . . . . . . . . . . . . . . Kills | -11 -10 -10 -10 -8 -7 -7 -7 -7 -7 -7 -5 -5 -5 -5 -4 -4 -4 -4 -4 -4 -3 -3 -2 -2 -2 -1 -1 ------- Run | Yrd Mat Min Sub Mat Fac Was Fac Sto Rec Scr Fac Upp Upp Zhi Pro Fac Ext Cet Arc Hub Res Tes Res Qua Sec Acc Com Combat Hostiles Destroyed 24 | . . . . 8 . . . . . . . . . . . . 2 2 . . 2 6 2 . 2 . . Melee 5 | . . . . 3 . . . . . . . . . . . . . . . . . 1 1 . . . . Guns 8 | . . . . . . . . . . . . . . . . . . . . . . 5 1 . 2 . . Cannons 5 | . . . . 5 . . . . . . . . . . . . . . . . . . . . . . . AOE 4 | . . . . . . . . . . . . . . . . . . 2 . . 2 . . . . . . Classes Destroyed 12 | 2 . . . 3 . . . . . . 1 . . . . . . 2 . 1 1 1 . . 1 . . Worker 2 | . . . . . . . . . . . 1 . . . . . . . . . . . . . 1 . . Tunneler 3 | 2 . 1 . . . . . . . . . . . . . . . . . . . . . . . . . Hauler 1 | . . . . . . . . . . . . . . . . . . . . 1 . . . . . . . Recycler 2 | 1 . . . . . . . . . . . . . . . . . . . . 1 . . . . . . Operator 8 | . . . . 1 . . 1 . . . . . . . . . . . 6 . . . . . . . . Watcher 2 | . . . . . . . . . . . . . . . . . . 1 . . 1 . . . . . . Swarmer 5 | . . . . 5 . . . . . . . . . . . . . . . . . . . . . . . Cutter 2 | . . . . . . . . . . . . . . . . . . . . . 2 . . . . . . Grunt 9 | . . . . 3 . . . . . . . . . . . . 2 . . . . 4 . . . . . Sentry 2 | . . . . . . . . . . . . . . . . . . . . . . . 2 . . . . Programmer 2 | . . . . . . . . . . . . . . . . . . . . . . . . . 2 . . Cetus Guard 2 | . . . . . . . . . . . . . . . . . . 2 . . . . . . . . . Striker 2 | . . . . . . . . . . . . . . . . . . . . . . 2 . . . . . Best Kill Streak 4 | 2 . 1 . 3 . . 1 . . . 1 . . . . . 2 3 4 1 2 3 1 . 3 . . Combat Bots Only 3 | . . . . 3 . . . . . . . . . . . . 2 2 . . 2 3 1 . 2 . . Max Kills in Single Turn 2 | 1 . 1 . 1 . . 1 . . . 1 . . . . . 1 2 1 1 2 1 1 . 2 . . Gunslinging . | . . . . . . . . . . . . . . . . . . . . . . . . . . . . Exploded 2 | . . . . . . . . . . . . . . . . . . 2 . . 2 . . . . . . Melee 1 | . . . . 1 . . . . . . . . . . . . . . . . . 1 1 . . . . Uniques/NPCs Destroyed . | . . . . . . . . . . . . . . . . . . . . . . . . . . . . Combat | -11 -10 -10 -10 -8 -7 -7 -7 -7 -7 -7 -5 -5 -5 -5 -4 -4 -4 -4 -4 -4 -3 -3 -2 -2 -2 -1 -1 -------- Run | Yrd Mat Min Sub Mat Fac Was Fac Sto Rec Scr Fac Upp Upp Zhi Pro Fac Ext Cet Arc Hub Res Tes Res Qua Sec Acc Com Hostile Shots Fired 692 | . 17 . 9 124 26 . 8 110 . . 18 2 3 . 4 2 26 16 . 58 55 50 39 30 14 . 81 Missed 329 | . 11 . 4 45 15 . 5 67 . . 13 1 2 . 2 1 12 6 . 29 32 20 19 19 8 . 18 Damage Taken 9806 | . 76 . 127 1078 123 . 26 429 . . 103 20 31 . 228 17 376 306 . 739 576 728 588 248 267 83 3637 Core 3361 | . 43 . 74 475 34 . . 130 . . 18 . . . 68 17 114 102 . 119 88 173 102 . 164 32 1608 Absorbed by Shields . | . . . . . . . . . . . . . . . . . . . . . . . . . . . . Redirected to Shielding 70 | . . . . . . . . . . . 27 . . . 43 . . . . . . . . . . . . Regen/Repaired (Parts) 2272 | . . . . . 38 75 . . . 130 . . . . . . 65 125 46 34 271 296 392 99 681 9 11 Core Remaining (%) 69 | 100 . . 53 13 . . . . . 76 . . . . 91 . . . . 69 . 79 . . 74 . . Volleys Fired 148 | 6 . 6 . 36 2 . . . . . 3 . . . 7 1 5 5 . 4 8 44 14 . 4 . 3 Largest 2 | 2 . 1 . 1 1 . . . . . 1 . . . 1 1 1 1 . 1 1 1 1 . 1 . 1 Hottest 120 | 40 . 100 . 44 44 . . . . . 5 . . . 5 5 5 45 . 5 45 50 120 . 120 . 30 Shots Fired 152 | 10 . 6 . 36 2 . . . . . 3 . . . 7 1 5 5 . 4 8 44 14 . 4 . 3 Gun 84 | 10 . 4 . 14 . . . . . . . . . . . . . . . . . 44 9 . 3 . . Cannon 30 | . . . . 22 2 . . . . . . . . . . . . . . . . . 5 . 1 . . Launcher 8 | . . . . . . . . . . . . . . . . . . 5 . . 1 . . . . . 2 Special 30 | . . 2 . . . . . . . . 3 . . . 7 1 5 . . 4 7 . . . . . 1 Kinetic 108 | 10 . 4 . 36 2 . . . . . . . . . . . . . . . . 44 9 . 3 . . Thermal 9 | . . 2 . . . . . . . . . . . . . . . . . . . . 5 . 1 . 1 Explosive 7 | . . . . . . . . . . . . . . . . . . 5 . . 1 . . . . . 1 Electromagnetic . | . . . . . . . . . . . . . . . . . . . . . . . . . . . . Robot Hit Streak 10 | 6 . 7 . 10 2 . . . . . 1 . . . 3 4 3 10 . . 2 10 6 . 4 . 6 Robot Miss Streak 11 | 2 . 1 . 7 4 . . . . . 4 . . . 1 . 2 3 . 4 11 7 5 . 2 . . Penetration Max 1 | . . . . . . . . . . . . . . . . . . . . . . 1 . . 1 . . Secondary Targets . | . . . . . . . . . . . . . . . . . . . . . . . . . . . . Shots Hit Robots 158 | 7 . 3 . 30 2 . 2 . . . 2 . . . 5 1 9 4 6 3 4 45 17 4 5 . 9 Core Hits 129 | 4 . 1 . 22 1 . . . . . 1 . . . . . . 53 4 1 6 22 5 . 3 . 6 Critical Kills 9 | . . . . . . . . . . . . . . . . . . . . . . 5 1 . 3 . . Critical Parts Destroyed 12 | . . . . . . . . . . . . . . . . . 1 . . . . 9 1 . 1 . . Critical Strikes 30 | . . . . . . . . . . . . . . . . . 1 . . 1 . 21 3 . 4 . . Destroy 26 | . . . . . . . . . . . . . . . . . . . . . . 20 2 . 4 . . Smash 1 | . . . . . . . . . . . . . . . . . 1 . . . . . . . . . . Sever 3 | . . . . . . . . . . . . . . . . . . . . 1 . 1 1 . . . . Melee Attacks 185 | . . . . 13 5 . 5 10 1 . 28 2 . . 2 3 10 . 6 7 18 17 28 13 5 2 10 Impact 19 | . . . . . . . . . . . . . . . 2 3 10 . . . 4 . . . . . . Slashing 127 | . . . . 13 5 . 5 10 1 . 28 2 . . . . . . 6 7 . 5 23 7 3 2 10 Piercing 26 | . . . . . . . . . . . . . . . . . . . . . 14 12 . . . . . Sneak Attacks 13 | . . . . . . . . . . . 1 . . . . . 1 . 6 1 1 . . 2 1 . . Combat Hostiles 1 | . . . . . . . . . . . . . . . . . 1 . . . . . . . . . . Follow-up Attacks . | . . . . . . . . . . . . . . . . . . . . . . . . . . . . Damage Inflicted 6204 | 78 . 40 . 495 15 . 86 . . . 65 . . . . . 352 1016 660 189 232 575 712 . 41 . 1648 Guns 619 | 78 . 40 . 95 . . . . . . . . . . . . . . . . . 323 42 . 41 . . Cannons 319 | . . . . 304 15 . . . . . . . . . . . . . . . . . . . . . . Explosions 2331 | . . . . . . . . . . . . . . . . . . 1016 . . 75 . . . . . 1240 Melee 2935 | . . . . 96 . . 86 . . . 65 . . . . . 352 . 660 189 157 252 670 . . . 408 Ramming . | . . . . . . . . . . . . . . . . . . . . . . . . . . . . Kinetic 938 | 78 . 40 . 399 15 . . . . . . . . . . . . . . . . 323 42 . 41 . . Thermal 990 | . . . . . . . . . . . . . . . . . . . . . . . . . . . 990 Explosive 1341 | . . . . . . . . . . . . . . . . . . 1016 . . 75 . . . . . 250 Electromagnetic . | . . . . . . . . . . . . . . . . . . . . . . . . . . . . Impact 352 | . . . . . . . . . . . . . . . . . 352 . . . . . . . . . . Slashing 2234 | . . . . 96 . . 86 . . . 65 . . . . . . . 660 189 . 60 670 . . . 408 Piercing 349 | . . . . . . . . . . . . . . . . . . . . . 157 192 . . . . . Highest Corruption 8 | . . . . . 1 1 1 1 6 . . . . . . . 8 8 8 4 3 5 . . . . . Average Corruption 3 | . . . . . 1 1 1 1 2 . . . . . . . 6 8 5 2 1 3 . . . . . Corruption Purged 8 | . . . . . . . . . . . . . . . . . . . 8 . . . . . . . . Corruption Blocked 1 | . . . . . . . . . . . . . . . . . . . . . . . 1 . . . . Effects 54 | . . . . . . 2 3 2 2 . . . . . . . 11 9 7 . 7 11 . . . . . Message Errors 14 | . . . . . . . . 1 . . . . . . . . 3 3 1 . 2 4 . . . . . Matter Fused 15 | . . . . . . . . . . . . . . . . . 3 5 4 . 1 2 . . . . . Heat Flow Errors 6 | . . . . . . . 1 1 . . . . . . . . 2 . . . 2 . . . . . . Energy Discharges 8 | . . . . . . . 2 . 1 . . . . . . . . . 2 . 1 2 . . . . . Parts Rejected 2 | . . . . . . . . . . . . . . . . . 1 . . . . 1 . . . . . Parts Fused 1 | . . . . . . . . . . . . . . . . . . . . . . 1 . . . . . Data Loss (minor) 5 | . . . . . . 1 . . 1 . . . . . . . 2 . . . 1 . . . . . . Data Loss (major) 3 | . . . . . . 1 . . . . . . . . . . . 1 . . . 1 . . . . . Overload Shots . | . . . . . . . . . . . . . . . . . . . . . . . . . . . . Overflow Damage 594 | . . . . . . . 20 . . . . . . . . . 77 . 162 . . . 89 . . . 246 Projectiles . | . . . . . . . . . . . . . . . . . . . . . . . . . . . . Explosions 246 | . . . . . . . . . . . . . . . . . . . . . . . . . . . 246 Melee 348 | . . . . . . . 20 . . . . . . . . . 77 . 162 . . . 89 . . . . Knockbacks 21 | . . . . 16 2 . . . . . . . . . . . 3 . . . . . . . . . . Impact 3 | . . . . . . . . . . . . . . . . . 3 . . . . . . . . . . Kinetic 17 | . . . . 15 2 . . . . . . . . . . . . . . . . . . . . . . Secondary 1 | . . . . 1 . . . . . . . . . . . . . . . . . . . . . . . Self-Inflicted Damage 896 | . . . . . . . . . . . . . . . . . . . . . 16 . . . . . 880 Shots 2 | . . . . . . . . . . . . . . . . . . . . . 1 . . . . . 1 Rammed . | . . . . . . . . . . . . . . . . . . . . . . . . . . . . Targets Rammed . | . . . . . . . . . . . . . . . . . . . . . . . . . . . . Kicked . | . . . . . . . . . . . . . . . . . . . . . . . . . . . . Crushed . | . . . . . . . . . . . . . . . . . . . . . . . . . . . . Highest Temperature 264 | . . 8 . 39 6 . 264 185 . . . . . . . . 222 . . . 217 6 120 22 32 . 13 Average Temperature 64 | . . 4 . 17 5 . 162 49 . . . . . . . . 106 . . . 100 6 54 5 12 . 8 Received Heat Transfer 1149 | . 42 . 18 405 36 . . 141 . . 36 9 12 . . . 60 27 . 90 39 54 36 9 9 9 117 Siege Activations . | . . . . . . . . . . . . . . . . . . . . . . . . . . . . Robots Corrupted 2 | . . . . . . . . . . . . . . . . . 2 . . . . . . . . . . Combat Hostiles 2 | . . . . . . . . . . . . . . . . . 2 . . . . . . . . . . Parts Fried 3 | . . . . . . . . . . . . . . . . . 3 . . . . . . . . . . Impact Corruptions 4 | . . . . . . . . . . . . . . . . . 4 . . . . . . . . . . Robots Melted . | . . . . . . . . . . . . . . . . . . . . . . . . . . . . Combat Hostiles . | . . . . . . . . . . . . . . . . . . . . . . . . . . . . Parts Melted . | . . . . . . . . . . . . . . . . . . . . . . . . . . . . Heat Transferred 30 | . . . . . . . . . . . . . . . . . . . . . . . . . . . 30 Parts Sabotaged . | . . . . . . . . . . . . . . . . . . . . . . . . . . . . Parts Stolen . | . . . . . . . . . . . . . . . . . . . . . . . . . . . . Parts Stripped . | . . . . . . . . . . . . . . . . . . . . . . . . . . . . Power Chain Reactions . | . . . . . . . . . . . . . . . . . . . . . . . . . . . . Alert | -11 -10 -10 -10 -8 -7 -7 -7 -7 -7 -7 -5 -5 -5 -5 -4 -4 -4 -4 -4 -4 -3 -3 -2 -2 -2 -1 -1 ------- Run | Yrd Mat Min Sub Mat Fac Was Fac Sto Rec Scr Fac Upp Upp Zhi Pro Fac Ext Cet Arc Hub Res Tes Res Qua Sec Acc Com Peak Influence 2241 | 15 229 99 . 356 409 173 210 549 333 . 428 . . . . 70 435 184 208 503 450 151 265 250 334 52 2241 Initial 259 | . 9 94 . . 161 143 44 95 164 . . . . . . 6 34 48 73 72 259 9 40 26 135 2 . Average 167 | 7 54 94 . 173 239 117 123 295 232 . 134 . . . . 25 144 172 173 245 312 55 134 75 231 32 595 Maximum Alert Level 5 | . 1 . . 1 2 . 1 2 1 . 2 . . . . . 2 . 1 2 2 . 1 1 1 . 5 Low Security (%) 69 | 100 98 100 . 49 46 100 97 30 25 . 76 . . . . 100 82 100 71 48 3 100 76 81 43 100 74 Level 1 26 | . 1 . . 50 50 . 2 50 75 . 18 . . . . . 15 . 28 36 79 . 23 18 56 . . Level 2 3 | . . . . . 3 . . 19 . . 4 . . . . . 1 . . 15 17 . . . . . . Level 3 . | . . . . . . . . . . . . . . . . . . . . . . . . . . . . Level 4 . | . . . . . . . . . . . . . . . . . . . . . . . . . . . . Level 5 . | . . . . . . . . . . . . . . . . . . . . . . . . . . . 25 High Security . | . . . . . . . . . . . . . . . . . . . . . . . . . . . . Max Security . | . . . . . . . . . . . . . . . . . . . . . . . . . . . . Squads Dispatched 39 | . 4 . . 3 5 . . 3 . . 3 . . . . 2 . . . 6 3 5 1 . . 2 2 Investigation 21 | . 3 . . 3 3 . . 2 . . 3 . . . . 1 . . . 4 . . 1 . . 1 . Extermination 3 | . . . . . 1 . . . . . . . . . . . . . . . 1 1 . . . . . Reinforcement 13 | . 1 . . . . . . 1 . . . . . . . 1 . . . 2 2 3 . . . 1 2 Assault 1 | . . . . . . . . . . . . . . . . . . . . . . 1 . . . . . Garrison 1 | . . . . . 1 . . . . . . . . . . . . . . . . . . . . . . Intercept . | . . . . . . . . . . . . . . . . . . . . . . . . . . . . Searches Triggered . | . . . . . . . . . . . . . . . . . . . . . . . . . . . . Construction Impeded . | . . . . . . . . . . . . . . . . . . . . . . . . . . . . Haulers Reinforced . | . . . . . . . . . . . . . . . . . . . . . . . . . . . . Active Scanning Responses . | . . . . . . . . . . . . . . . . . . . . . . . . . . . . Cargo Convoy Interrupts . | . . . . . . . . . . . . . . . . . . . . . . . . . . . . Stealth | -11 -10 -10 -10 -8 -7 -7 -7 -7 -7 -7 -5 -5 -5 -5 -4 -4 -4 -4 -4 -4 -3 -3 -2 -2 -2 -1 -1 --------- Run | Yrd Mat Min Sub Mat Fac Was Fac Sto Rec Scr Fac Upp Upp Zhi Pro Fac Ext Cet Arc Hub Res Tes Res Qua Sec Acc Com Distress Signals 31 | . 3 . . 2 . . 1 3 . . . . . . 3 . 3 1 . 2 6 1 2 1 1 2 . Communications Jammed . | . . . . . . . . . . . . . . . . . . . . . . . . . . . . Distress Signals . | . . . . . . . . . . . . . . . . . . . . . . . . . . . . Times Spotted 391 | . 20 . 4 54 10 5 6 32 . . 27 4 1 . 9 7 27 4 1 41 43 17 27 20 10 4 18 Peak Tracking Total 31 | . 14 . 4 14 8 3 3 17 . . 10 4 1 . 3 4 6 5 1 31 19 5 9 9 7 3 7 Tactical Retreats 64 | . 3 . 1 10 3 . 1 4 . . 9 2 . . . . 2 . . 1 9 4 5 5 1 2 2 Traps | -11 -10 -10 -10 -8 -7 -7 -7 -7 -7 -7 -5 -5 -5 -5 -4 -4 -4 -4 -4 -4 -3 -3 -2 -2 -2 -1 -1 ------- Run | Yrd Mat Min Sub Mat Fac Was Fac Sto Rec Scr Fac Upp Upp Zhi Pro Fac Ext Cet Arc Hub Res Tes Res Qua Sec Acc Com Traps Triggered 8 | . 1 . . . 1 . . 2 . . . . . . . 2 1 . . . . . 1 . . . . Indirectly . | . . . . . . . . . . . . . . . . . . . . . . . . . . . . Trap Hack Attempts . | . . . . . . . . . . . . . . . . . . . . . . . . . . . . Triggered . | . . . . . . . . . . . . . . . . . . . . . . . . . . . . Disarmed . | . . . . . . . . . . . . . . . . . . . . . . . . . . . . Reprogrammed . | . . . . . . . . . . . . . . . . . . . . . . . . . . . . Reused . | . . . . . . . . . . . . . . . . . . . . . . . . . . . . Traps Extracted . | . . . . . . . . . . . . . . . . . . . . . . . . . . . . Installed . | . . . . . . . . . . . . . . . . . . . . . . . . . . . . Triggered . | . . . . . . . . . . . . . . . . . . . . . . . . . . . . Machines | -11 -10 -10 -10 -8 -7 -7 -7 -7 -7 -7 -5 -5 -5 -5 -4 -4 -4 -4 -4 -4 -3 -3 -2 -2 -2 -1 -1 ---------- Run | Yrd Mat Min Sub Mat Fac Was Fac Sto Rec Scr Fac Upp Upp Zhi Pro Fac Ext Cet Arc Hub Res Tes Res Qua Sec Acc Com Machines Disabled 18 | . . . . . . . . 1 . . . . . . 2 1 2 . 1 . . 4 . 2 3 . 2 Max in Single Turn 2 | . . . . . . . . 1 . . . . . . 1 1 1 . . . . 1 . 1 1 . 2 Garrison Access 9 | . . . . 1 1 . . . . . 1 . . . . . . . . 1 1 1 . 1 . 2 . Network Hub 1 | . . . . . . . . . . . . . . . . . . . . 1 . . . . . . . Machines Repaired . | . . . . . . . . . . . . . . . . . . . . . . . . . . . . Machines Dismantled . | . . . . . . . . . . . . . . . . . . . . . . . . . . . . Machines Sabotaged 1 | . . . . . . . . . . . . . . . . . . . . 1 . . . . . . . Overloaded Fab Kills . | . . . . . . . . . . . . . . . . . . . . . . . . . . . . Hacking | -11 -10 -10 -10 -8 -7 -7 -7 -7 -7 -7 -5 -5 -5 -5 -4 -4 -4 -4 -4 -4 -3 -3 -2 -2 -2 -1 -1 --------- Run | Yrd Mat Min Sub Mat Fac Was Fac Sto Rec Scr Fac Upp Upp Zhi Pro Fac Ext Cet Arc Hub Res Tes Res Qua Sec Acc Com Machines Accessed 146 | . 5 1 2 11 8 . 2 10 10 3 14 . . 6 . 4 10 1 . 5 7 14 7 11 2 11 2 Terminals 103 | . 5 . . 8 3 . 2 9 5 . 9 . . . . 3 10 1 . 4 6 11 4 10 2 9 2 Fabricators 4 | . . . . . 1 . . . . . 1 . . . . 1 . . . . . . 1 . . . . Repair Stations 6 | . . . . . 2 . . . . . 1 . . . . . . . . . . 1 2 . . . . Recycling Units 9 | . . . . 2 1 . . 1 5 . . . . . . . . . . . . . . . . . . Scanalyzers 3 | . . . . . . . . . . . 2 . . . . . . . . . . 1 . . . . . Garrison Access 9 | . . . . 1 1 . . . . . 1 . . . . . . . . 1 1 1 . 1 . 2 . Total Hacks 525 | . 17 1 3 40 18 . 4 23 30 14 40 . . 19 . 17 43 1 . 26 40 65 29 48 14 27 6 Successful 362 | . 12 1 3 22 11 . 3 17 14 14 27 . . 19 . 12 29 1 . 16 29 51 20 34 9 15 3 Failed 162 | . 5 . . 18 7 . 1 6 16 . 13 . . . . 5 13 . . 10 11 14 9 14 5 12 3 Catastrophic 14 | . . . . 1 . . . . 1 . 1 . . . . 1 3 . . . . . . 2 1 4 . Database Lockouts 1 | . . . . . . . . . . . . . . . . . 1 . . . . . . . . . . Manual 283 | . 15 . . 21 9 . 3 17 19 . 22 . . . . 11 27 1 . 13 26 32 9 28 11 13 6 Terminals 427 | . 17 . . 36 8 . 4 22 20 . 28 . . . . 15 43 1 . 25 39 56 21 47 14 25 6 Fabricators 10 | . . . . . 2 . . . . . 3 . . . . 2 . . . . . . 3 . . . . Repair Stations 16 | . . . . . 4 . . . . . 3 . . . . . . . . . . 4 5 . . . . Recycling Units 16 | . . . . 2 3 . . 1 10 . . . . . . . . . . . . . . . . . . Scanalyzers 9 | . . . . . . . . . . . 5 . . . . . . . . . . 4 . . . . . Garrison Access 10 | . . . . 2 1 . . . . . 1 . . . . . . . . 1 1 1 . 1 . 2 . Terminal Hacks 227 | . 6 1 3 11 1 . 1 13 5 14 10 . . 19 . 7 22 1 . 10 22 31 9 24 8 8 1 Record 23 | . . . 1 . . . . . . 13 . . . 7 . . . . . . 1 . 1 . . . . Part Schematic 12 | . . . . . . . . . . . 1 . . 4 . . 2 . . . 1 4 . . . . . Robot Analysis 25 | . 2 . . 1 . . . 4 2 . 2 . . 4 . . 2 . . 2 4 . 1 1 . . . Prototype ID Bank 16 | . 1 . . . . . . . . . 1 . . 4 . . 2 . . 1 1 3 1 1 . 1 . Open Door 17 | . . 1 1 . . . . 5 . . . . . . . . 4 1 . . . 1 . 1 . 3 . Level Access Points 2 | . . . . . . . . . . . . . . . . . . . . 1 . . . 1 . . . Branch Access Points 9 | . . . . . . . . 1 . . 1 . . . . 1 1 . . . 1 1 1 1 1 . . Emergency Access Points 6 | . . . . 1 . . . . . . . . . . . . . . . 1 . 1 . 1 1 1 . Machine Index 1 | . . . . . . . . . . . . . . . . . 1 . . . . . . . . . . Terminal Index 7 | . . . . 1 . . . . . . . . . . . 1 . . . 1 1 1 1 1 . . . Fabricator Index 4 | . . . . . . . . . . . 1 . . . . 1 . . . . . 1 . 1 . . . Repair Station Index 1 | . . . . . . . . . . . . . . . . . . . . . 1 . . . . . . Scanalyzer Index 4 | . . . . . . . . . . . 1 . . . . 1 . . . . . 1 . 1 . . . Garrison Index 3 | . . . . . . . . . . . 1 . . . . . . . . . 1 . 1 . . . . Alert Level 6 | . . . . . . . . 1 . . . . . . . . 1 . . . 1 2 . . 1 . . Unreport Threat 26 | . . . . 3 . . . 1 3 . . . . . . 1 4 . . . 4 2 1 3 4 . . Locate Traps 2 | . . . . 1 . . . . . . . . . . . . 1 . . . . . . . . . . Dispatch Records 3 | . . . . . . . . . . . . . . . . . . . . . . 1 . 1 . 1 . Maintenance Status 1 | . . . . . . . . . . . 1 . . . . . . . . . . . . . . . . Security Status 1 | . . . . . . . . . . . . . . . . . 1 . . . . . . . . . . Surveillance Status 1 | . . . . . . . . . . . . . . . . . . . . . . . . . . 1 . Patrol Status 1 | . . . . . . . . . . . . . . . . . . . . . . . . 1 . . . Investigation Status 1 | . . . . . . . . . . . . . . . . . . . . . . . . 1 . . . Recall Investigation 3 | . . . . . . . . . . . . . . . . 1 . . . . . . 1 . . 1 . Recall Extermination 1 | . . . . . . . . . . . . . . . . . . . . . 1 . . . . . . Recall Reinforcements 2 | . . . . . . . . . . . . . . . . . . . . . . 2 . . . . . Recall Assault 1 | . . . . . . . . . . . . . . . . . . . . . . 1 . . . . . Hauler Manifests 2 | . . . . 1 . . . . . . . . . . . . . . . . 1 . . . . . . Registered Components 3 | . . . . . . . . . . . 1 . . . . . . . . . . 1 . 1 . . . Registered Prototypes 2 | . . . . . . . . . . . . . . . . 1 . . . . . . . 1 . . . Zone Layout 36 | . 3 . . 3 1 . 1 1 . . . . . . . . 3 . . 4 4 6 1 7 1 . 1 Derelict Proto ID Bank 1 | . . . . . . . . . . 1 . . . . . . . . . . . . . . . . . Protovariant Controls 3 | . . . . . . . . . . . . . . . . . . . . . . 3 . . . . . Release Object 1 | . . . 1 . . . . . . . . . . . . . . . . . . . . . . . . Fabricator Hacks 8 | . . . . . 1 . . . . . 3 . . . . 2 . . . . . . 2 . . . . Load Schematic 3 | . . . . . . . . . . . 1 . . . . 1 . . . . . . 1 . . . . Build 5 | . . . . . 1 . . . . . 2 . . . . 1 . . . . . . 1 . . . . Repair Station Hacks 11 | . . . . . 1 . . . . . 2 . . . . . . . . . . 4 4 . . . . Scan Component 6 | . . . . . 1 . . . . . 1 . . . . . . . . . . 2 2 . . . . Repair 5 | . . . . . . . . . . . 1 . . . . . . . . . . 2 2 . . . . Recycling Unit Hacks 4 | . . . . . 2 . . . 2 . . . . . . . . . . . . . . . . . . Retrieve Matter 1 | . . . . . 1 . . . . . . . . . . . . . . . . . . . . . . Retrieve Components 3 | . . . . . 1 . . . 2 . . . . . . . . . . . . . . . . . . Scanalyzer 7 | . . . . . . . . . . . 4 . . . . . . . . . . 3 . . . . . Insert Component 3 | . . . . . . . . . . . 2 . . . . . . . . . . 1 . . . . . Analyze 4 | . . . . . . . . . . . 2 . . . . . . . . . . 2 . . . . . Garrison Access Hacks 9 | . . . . 1 1 . . . . . 1 . . . . . . . . 1 1 1 . 1 . 2 . Seal Access 9 | . . . . 1 1 . . . . . 1 . . . . . . . . 1 1 1 . 1 . 2 . Unauthorized Hacks 96 | . 6 . . 10 5 . 2 4 7 . 7 . . . . 3 7 . . 5 6 12 5 9 1 5 2 Terminals 86 | . 6 . . 8 3 . 2 3 2 . 7 . . . . 3 7 . . 5 6 12 5 9 1 5 2 Track 1 | . . . . . . . . . . . . . . . . . . . . . . 1 . . . . . Assimilate 14 | . . . . 1 . . . 1 . . 2 . . . . . 2 . . . 1 3 1 2 . 1 . Botnet 65 | . 5 . . 7 3 . 2 2 2 . 5 . . . . 3 5 . . 1 5 7 4 7 1 4 2 Detonate 1 | . 1 . . . . . . . . . . . . . . . . . . . . . . . . . . Operators 1 | . . . . . . . . . . . . . . . . . . . . . . 1 . . . . . Sabotage 4 | . . . . . . . . . . . . . . . . . . . . 4 . . . . . . . Fabricators . | . . . . . . . . . . . . . . . . . . . . . . . . . . . . Repair Stations 1 | . . . . . 1 . . . . . . . . . . . . . . . . . . . . . . Patch 1 | . . . . . 1 . . . . . . . . . . . . . . . . . . . . . . Recycling Units 9 | . . . . 2 1 . . 1 5 . . . . . . . . . . . . . . . . . . Tunnel 9 | . . . . 2 1 . . 1 5 . . . . . . . . . . . . . . . . . . Scanalyzers . | . . . . . . . . . . . . . . . . . . . . . . . . . . . . Garrison Access . | . . . . . . . . . . . . . . . . . . . . . . . . . . . . Data Cores Recovered 2 | . . . . . . . 1 . . . . . . . . . 1 . . . . . . . . . . Used . | . . . . . . . . . . . . . . . . . . . . . . . . . . . . Hacking Detections 87 | . 5 . . 9 7 . 2 5 6 . 12 . . . . 4 3 . . 3 5 5 6 7 1 5 2 Full Trace Events 16 | . 2 . . 3 1 . . 1 3 . 3 . . . . 1 . . . . . . 1 . . 1 . Feedback Events 2 | . . . . . . . . . 2 . . . . . . . . . . . . . . . . . . Corruption 1 | . . . . . . . . . 1 . . . . . . . . . . . . . . . . . . Hackware Fried 1 | . . . . . . . . . 1 . . . . . . . . . . . . . . . . . . Feedback Blocked . | . . . . . . . . . . . . . . . . . . . . . . . . . . . . Robot Schematics Acquired . | . . . . . . . . . . . . . . . . . . . . . . . . . . . . Robots Built 4 | . . . . . . . . . . . 4 . . . . . . . . . . . . . . . . Authchips . | . . . . . . . . . . . . . . . . . . . . . . . . . . . . Time 84 | . . . . . 44 . . . . . 40 . . . . . . . . . . . . . . . . Total Robot Build Rating 4 | . . . . . . . . . . . 4 . . . . . . . . . . . . . . . . Part Schematics Acquired 15 | . . . . . . . . . . . 3 . . 4 . . 2 . . . 1 5 . . . . . Parts Built 3 | . . . . . . . . . . . 1 . . . . 1 . . . . . . 1 . . . . Authchips 1 | . . . . . . . . . . . 1 . . . . . . . . . . . . . . . . Time 140 | . . . . . . . . . . . 25 . . . . 53 . . . . . . 62 . . . . Total Part Build Rating 14 | . . . . . . . . . . . 1 . . . . 6 . . . . . . 7 . . . . Parts Repaired 5 | . . . . . . . . . . . 1 . . . . . . . . . . 2 2 . . . . Time 220 | . . . . . . . . . . . 26 . . . . . . . . . . 62 132 . . . . Parts Recycled . | . . . . . . . . . . . . . . . . . . . . . . . . . . . . Recycled Matter . | . . . . . . . . . . . . . . . . . . . . . . . . . . . . Retrieved Matter . | . . . . . . . . . . . . . . . . . . . . . . . . . . . . Retrieved Components 4 | . . . . . 3 . . . 1 . . . . . . . . . . . . . . . . . . Parts Scanalyzed 3 | . . . . . . . . . . . 2 . . . . . . . . . . 1 . . . . . Part Schematics Acquired 3 | . . . . . . . . . . . 2 . . . . . . . . . . 1 . . . . . Parts Damaged . | . . . . . . . . . . . . . . . . . . . . . . . . . . . . Bothacking | -11 -10 -10 -10 -8 -7 -7 -7 -7 -7 -7 -5 -5 -5 -5 -4 -4 -4 -4 -4 -4 -3 -3 -2 -2 -2 -1 -1 ------------ Run | Yrd Mat Min Sub Mat Fac Was Fac Sto Rec Scr Fac Upp Upp Zhi Pro Fac Ext Cet Arc Hub Res Tes Res Qua Sec Acc Com Used RIF Installer . | . . . . . . . . . . . . . . . . . . . . . . . . . . . . Robots Hacked 18 | . . . . . . . . . . . 1 . . . 4 1 3 . . . . . 2 4 2 . 1 Non-combat . | . . . . . . . . . . . . . . . . . . . . . . . . . . . . Combat . | . . . . . . . . . . . . . . . . . . . . . . . . . . . . Robot Hacks Applied . | . . . . . . . . . . . . . . . . . . . . . . . . . . . . Manual 18 | . . . . . . . . . . . 1 . . . 4 1 3 . . . . . 2 4 2 . 1 Relay Couplers Released . | . . . . . . . . . . . . . . . . . . . . . . . . . . . . Fabnet Peak Effective % . | . . . . . . . . . . . . . . . . . . . . . . . . . . . . Robots Rewired 20 | . . . . . . . . . . . 1 . . . 2 . 17 . . . . . . . . . . Allies Hacked . | . . . . . . . . . . . . . . . . . . . . . . . . . . . . Hacks Repelled . | . . . . . . . . . . . . . . . . . . . . . . . . . . . . Allies | -11 -10 -10 -10 -8 -7 -7 -7 -7 -7 -7 -5 -5 -5 -5 -4 -4 -4 -4 -4 -4 -3 -3 -2 -2 -2 -1 -1 -------- Run | Yrd Mat Min Sub Mat Fac Was Fac Sto Rec Scr Fac Upp Upp Zhi Pro Fac Ext Cet Arc Hub Res Tes Res Qua Sec Acc Com Total Allies 68 | . . 3 . 1 . 18 . . . . 7 . . . 2 . 23 5 . . . 2 1 2 . 4 . Largest Group 18 | . . 3 3 1 . 18 . . . . 5 . . . 2 . 13 13 13 7 . 2 1 2 . 4 . Highest-Rated Group 860 | . . 40 40 16 . 444 . . . . 50 . . . 98 . 603 860 860 572 . 55 45 36 . 424 . Highest-Rated Ally 159 | . . 16 16 16 . 35 . . . . 30 . . . 49 . 159 110 110 96 . 45 45 26 . 135 . Total Orders 4 | . . . . . . . . . . . . . . . . . . . 4 . . . . . . . . ROAM 1 | . . . . . . . . . . . . . . . . . . . 1 . . . . . . . . FOLLOW 3 | . . . . . . . . . . . . . . . . . . . 3 . . . . . . . . Ally Attacks 349 | . . . 10 7 . 67 . . . . . . . . 16 . 124 21 47 48 . . . . . 3 6 Total Damage 13764 | . . . 138 71 . 3628 . . . . . . . . 838 . 4559 380 1672 2257 . . . . . 200 21 Kills 62 | . . . 2 . . 14 . . . . . . . . 5 . 21 3 4 13 . . . . . . . Allies Corrupted 2 | . . . . . . . . . . . . . . . . . . . . . . . . . . 2 . Allies Melted 2 | . . . . . . . . . . . . . . . . . 2 . . . . . . . . . . Intel | -11 -10 -10 -10 -8 -7 -7 -7 -7 -7 -7 -5 -5 -5 -5 -4 -4 -4 -4 -4 -4 -3 -3 -2 -2 -2 -1 -1 ------- Run | Yrd Mat Min Sub Mat Fac Was Fac Sto Rec Scr Fac Upp Upp Zhi Pro Fac Ext Cet Arc Hub Res Tes Res Qua Sec Acc Com Robot Analysis Total 25 | . 2 . . 1 . . . 4 2 . 2 . . 4 . . 2 . . 2 4 . 1 1 . . . Derelict Logs Recovered 7 | . . 1 1 . . . . . . . . 2 1 . 2 . . . . . . . . . . . . Drone Launches 4 | . . . . . . . . . . . . . . . . . . . . . . . . . . . 4 Drone Recoveries 1 | . . . . . . . . . . . . . . . . . . . . . . . . . . . 1 Exploration | -11 -10 -10 -10 -8 -7 -7 -7 -7 -7 -7 -5 -5 -5 -5 -4 -4 -4 -4 -4 -4 -3 -3 -2 -2 -2 -1 -1 ------------- Run | Yrd Mat Min Sub Mat Fac Was Fac Sto Rec Scr Fac Upp Upp Zhi Pro Fac Ext Cet Arc Hub Res Tes Res Qua Sec Acc Com Turns Passed 7218 | 60 182 283 188 450 366 96 172 169 184 495 685 105 75 57 157 146 466 250 336 140 577 508 478 198 95 159 141 Spaces Moved 15077 | 40 332 348 411 856 712 236 492 405 555 1519 1710 247 196 161 388 308 638 129 243 335 1166 978 917 803 269 338 345 Core 411 | 40 9 . 110 238 . . . . . . . . . . . . 5 . . . . . . . . . 9 Treads . | . . . . . . . . . . . . . . . . . . . . . . . . . . . . Legs . | . . . . . . . . . . . . . . . . . . . . . . . . . . . . Wheels . | . . . . . . . . . . . . . . . . . . . . . . . . . . . . Hover . | . . . . . . . . . . . . . . . . . . . . . . . . . . . . Flight 14636 | . 323 348 301 618 712 236 492 405 555 1519 1710 247 196 161 388 308 633 129 243 335 1166 978 917 803 261 336 316 Fastest Speed 6 | 50 40 40 40 26 27 27 31 28 32 32 30 30 30 30 30 32 28 32 32 27 29 27 6 11 17 14 14 Average Speed 30 | 50 40 40 42 35 31 29 31 31 32 32 30 30 30 30 30 32 33 32 32 32 31 27 21 18 20 18 21 Slowest Speed 500 | 50 50 40 50 150 32 35 31 104 32 32 32 30 30 30 37 32 500 107 107 34 37 99 22 22 22 19 125 Overloaded Moves 104 | . . . . . . . . . . . . . . . . . 14 . . 4 . . 24 48 5 3 6 Propulsion Burnouts . | . . . . . . . . . . . . . . . . . . . . . . . . . . . . Robots Hopped 114 | . 5 3 . 22 6 . 2 9 3 2 19 . 2 . . . 10 . . 8 3 4 3 9 2 2 . Cave-ins Triggered . | . . . . . . . . . . . . . . . . . . . . . . . . . . . . Spacefolds 8 | . . . . . . . . . . . . . . . . . . . . . . . . . 2 1 5 Exploration Rate (%) 52 | 3 74 85 30 80 20 81 17 79 98 90 47 46 44 61 67 10 76 58 96 44 39 75 22 82 18 11 21 Regions Visited 27 Branch Regions 17 Pre-discovered Areas 15 | . . . 1 2 1 . . 2 5 . . . . 3 1 . . . . . . . . . . . . Known Exits Taken 10 | . . 1 . . . . . 1 . . 1 . . . . 1 1 . . 1 1 . 1 . 1 1 . Unknown Exits Taken 15 | 1 1 . 1 1 . . 1 . 1 1 . 1 1 1 1 . . 1 1 . . 1 . 1 . . . Scrap Searched 6 | . . 1 . . . . . . . 3 . 1 . . 1 . . . . . . . . . . . . Spaces Dug 101 | . . . . 6 5 . 2 8 1 . 27 2 . . . 2 1 . . 4 14 6 13 5 1 2 2 Terrain Destroyed 950 | . . . . 6 5 . 2 8 1 . 27 2 . . . 2 1 110 . 4 26 11 13 5 1 2 724 Melee 96 | . . . . 6 5 . 2 8 1 . 27 2 . . . 2 1 . . 4 14 6 8 5 1 2 2 Projectile 5 | . . . . . . . . . . . . . . . . . . . . . . . 5 . . . . AOE 844 | . . . . . . . . . . . . . . . . . . 110 . . 12 . . . . . 722 Terrain Rammed . | . . . . . . . . . . . . . . . . . . . . . . . . . . . . Walls Destroyed . | . . . . . . . . . . . . . . . . . . . . . . . . . . . . Machines Disabled . | . . . . . . . . . . . . . . . . . . . . . . . . . . . . Actions | -11 -10 -10 -10 -8 -7 -7 -7 -7 -7 -7 -5 -5 -5 -5 -4 -4 -4 -4 -4 -4 -3 -3 -2 -2 -2 -1 -1 --------- Run | Yrd Mat Min Sub Mat Fac Was Fac Sto Rec Scr Fac Upp Upp Zhi Pro Fac Ext Cet Arc Hub Res Tes Res Qua Sec Acc Com Total 17147 | 69 374 478 424 915 842 262 501 423 556 1525 1805 274 209 169 417 348 852 325 490 343 1334 1139 1149 831 286 424 383 Wait 1511 | 18 47 124 10 6 118 12 5 4 . 2 62 26 16 . 10 16 136 189 231 . 116 72 179 7 1 82 22 Move 14810 | 39 321 341 410 814 700 235 487 387 548 1515 1672 246 191 160 387 307 617 128 242 320 1159 969 910 785 258 332 330 Hop 105 | . 5 3 . 19 6 . 2 8 3 1 18 . 2 . . . 10 . . 6 3 4 3 8 2 2 . Pick Up 45 | 2 . . 2 4 3 3 . . . 2 5 . . 3 1 . 5 . . 1 4 4 2 2 . 2 . Fast Attach 90 | 3 1 2 . 15 1 3 . 3 1 2 4 . . 2 2 1 5 . 5 1 6 10 5 6 8 2 2 Attach 34 | . . . . 4 2 . . . . . 5 . . 1 1 3 2 1 . 1 4 3 2 . . . 5 Detach 17 | 1 . 2 . 1 . 1 . . 1 . 1 . . . 1 . 1 . 2 . 2 2 1 . . . 1 Swap 38 | . . . . . 2 2 1 . 1 . 3 . . . . . . 2 1 1 8 4 3 2 4 1 3 Drop 72 | . . . 2 3 3 6 1 1 1 3 2 . . 3 2 1 1 . 3 2 6 10 2 8 4 1 7 Fire 148 | 6 . 6 . 36 2 . . . . . 3 . . . 7 1 5 5 . 4 8 44 14 . 4 . 3 Melee 185 | . . . . 13 5 . 5 10 1 . 28 2 . . 2 3 10 . 6 7 18 17 28 13 5 2 10 Ram . | . . . . . . . . . . . . . . . . . . . . . . . . . . . . Kick . | . . . . . . . . . . . . . . . . . . . . . . . . . . . . Crush . | . . . . . . . . . . . . . . . . . . . . . . . . . . . . Escape Stasis 36 | . . . . . . . . 10 . . . . . . . 16 10 . . . . . . . . . . Rewire 56 | . . . . . . . . . . . 2 . . . 4 . 50 . . . . . . . . . . Trap . | . . . . . . . . . . . . . . . . . . . . . . . . . . . . Miscellaneous . | . . . . . . . . . . . . . . . . . . . . . . . . . . . . Route ------- -11/Scrapyard -10/Materials (discovered 3 exits: [*Mat x2] / *Min) -10/Mines (discovered 3 exits: [*Mat x2] / *Sub) -10/Subcaves -8/Materials (discovered 3 exits: *Fac x3) -7/Factory -7/Waste -7/Factory -7/Storage (discovered 2 exits: [*Fac] / *Rec) -7/Recycling (discovered 2 exits: *Fac / *Scr) -7/Scraptown -5/Factory (discovered 2 exits: *Upp x2) -5/Upper Caves -5/Upper Caves (discovered 2 exits: Fac / *Zhi) -5/Zhirov -4/Proximity Caves -4/Factory (discovered 6 exits: Res x2 / *Upp x2 / *Ext x2) -4/Extension (discovered 2 exits: *Res / *Cet) -4/Cetus -4/Archives (discovered 3 exits: *Res / *Hub x2) -4/Hub_04(d) (discovered 4 exits: *Res x4) -3/Research (discovered 5 exits: *Res x2 / *Arm / *Tes x2) -3/Testing -2/Research (discovered 2 exits: *Qua x2) -2/Quarantine (discovered 2 exits: *Acc / *Sec) -2/Section 7 -1/Access (discovered 2 exits: Sur / *Com) -1/Command History --------- Turn | Location | Event 7 | -11/Scrapyard | Discovered new exit (range 15) 61 | -11/Scrapyard | Entered Materials 173 | -10/Materials | Discovered new exit (range 6) 181 | -10/Materials | Discovered new exit (range 18) 206 | -10/Materials | Discovered new exit (range 14) 243 | -10/Materials | Entered Mines 245 | -10/Mines | Discovered new exit (range 5) 252 | -10/Mines | Discovered new exit (range 9) 266 | -10/Mines | Found the Drone Emporium 267 | -10/Mines | Found Prototype Device 267 | -10/Mines | Identified Thief Drone Bay 308 | -10/Mines | Build established: Mutant 316 | -10/Mines | Identified exit to Subcaves 319 | -10/Mines | Assisted by bots powering up and referring to "LRC-V3" 526 | -10/Mines | Entered Subcaves 526 | -10/Subcaves | Accompanied by 3 allies 594 | -10/Subcaves | Discovered new exit (range 11) 599 | -10/Subcaves | Learned location of Zion (-6) 621 | -10/Subcaves | Ambushed by Subdwellers from Twisted Machinery 647 | -10/Subcaves | Ambushed by Subdwellers from Twisted Machinery 714 | -10/Subcaves | Entered Materials 714 | -8/Materials | Accompanied by 1 ally 714 | -8/Materials | Evolved 4 slots: Propulsion x2, Utility x2 813 | -8/Materials | Core integrity fell below 50% 968 | -8/Materials | Discovered new exit (range 16) 998 | -8/Materials | Discovered new exit (range 5) 1092 | -8/Materials | Core integrity fell below 20% 1093 | -8/Materials | Discovered new exit (range 15) 1122 | -8/Materials | Lost 4 parts (1p2n1u) 1164 | -8/Materials | Entered Factory 1164 | -7/Factory | Evolved 2 slots: Utility x2 1273 | -7/Factory | Discovered new exit (range 10) 1388 | -7/Factory | Build established: Hacker-Sprinter 1524 | -7/Factory | Garrison activated, responded to threat 1530 | -7/Factory | Sucked down chute 1530 | -7/Factory | Entered Waste 1537 | -7/Waste | Spotted C-40 Crusher 1545 | -7/Waste | Warlord forces began an assault 1554 | -7/Waste | Spotted C-40 Crusher 1569 | -7/Waste | Allies destroyed C-40 Crusher 1578 | -7/Waste | Spotted C-40 Crusher 1579 | -7/Waste | Spotted C-40 Crusher 1593 | -7/Waste | Spotted C-40 Crusher 1619 | -7/Waste | Discovered new exit (range 10) 1626 | -7/Waste | Entered Factory 1631 | -7/Factory | Lost 9 allies 1794 | -7/Factory | Discovered new exit (range 5) 1798 | -7/Factory | Entered Storage 1858 | -7/Storage | Learned location of Armory (-3) 1926 | -7/Storage | Discovered new exit (range 16) 1957 | -7/Storage | Identified exit to Recycling 1963 | -7/Storage | Used back door to open Recycling access 1967 | -7/Storage | Entered Recycling 2068 | -7/Recycling | Discovered new exit (range 16) 2093 | -7/Recycling | Hacking Suite fried by hacking feedback 2144 | -7/Recycling | Scanned before Scraplab entrance 2148 | -7/Recycling | Entered Scraplab 2151 | -7/Recycling | Discovered new exit (range 2) 2151 | -7/Recycling | Entered Scraptown 2151 | -7/Scraptown | System corruption cleaned by C-Scrubber 2205 | -7/Scraptown | Discovered new exit (range 11) 2230 | -7/Scraptown | Visited CR-KLE's Repair Center 2237 | -7/Scraptown | Visited SPCMW 2287 | -7/Scraptown | Visited CPS Storage 2293 | -7/Scraptown | Visited Red Mages 2307 | -7/Scraptown | Visited Awakened 2313 | -7/Scraptown | Visited Fellowship of the Rings 2345 | -7/Scraptown | Visited UFD Registry 2345 | -7/Scraptown | Registered with UFD as "Metaltube" 2353 | -7/Scraptown | Visited Junk Repository 2369 | -7/Scraptown | Visited Curators Association 2379 | -7/Scraptown | Visited Botcube Research 2415 | -7/Scraptown | Visited Research Penetration Think Tank 2422 | -7/Scraptown | Visited Scrap Suit Storage 2427 | -7/Scraptown | Visited Junk Repository 2434 | -7/Scraptown | Visited Abandonware Association 2438 | -7/Scraptown | Learned abandonware demo "SHUTEYE.EXE" 2438 | -7/Scraptown | Learned abandonware demo "KABOOM.EXE" 2446 | -7/Scraptown | Visited Chapter 10 2454 | -7/Scraptown | Visited Science Guys 2466 | -7/Scraptown | Visited Supply Room 2618 | -7/Scraptown | CR-KLE repaired 4 parts 2646 | -7/Scraptown | Entered Factory 2646 | -5/Factory | Evolved 4 slots: Utility x4 2704 | -5/Factory | Spotted B-75 Beast 2771 | -5/Factory | Repaired Broken Adv. Weight Redist. System 2903 | -5/Factory | Identified exit to Upper Caves 2984 | -5/Factory | Fabricated K-01 Serf? 3031 | -5/Factory | Fabricated Med. Storage Unit (x1) 3331 | -5/Factory | Entered Upper Caves 3333 | -5/Upper Caves | Learned 4 Factory zone layouts 3341 | -5/Upper Caves | Learned Factory terminal intel 3402 | -5/Upper Caves | Discovered new exit (range 10) 3436 | -5/Upper Caves | Entered another Upper Caves area 3436 | -5/Upper Caves | Discovered new exit (range 10) 3444 | -5/Upper Caves | Learned Factory garrison access intel 3446 | -5/Upper Caves | Spotted B-75 Beast 3464 | -5/Upper Caves | Encountered a Warlord checkpoint 3508 | -5/Upper Caves | Discovered new exit (range 9) 3511 | -5/Upper Caves | Entered Zhirov 3511 | -5/Zhirov | Discovered new exit (range 3) 3517 | -5/Zhirov | Met Zhirov 3531 | -5/Zhirov | Found Alien Artifact 3536 | -5/Zhirov | Found Alien Artifact 3536 | -5/Zhirov | Identified Integrated Dissipator 3536 | -5/Zhirov | Installed Integrated Dissipator, increased core heat dissipation (+20) 3556 | -5/Zhirov | Learned location of Command (-1) 3560 | -5/Zhirov | Zhirov requested help retrieving the SGEMP Prototype 3568 | -5/Zhirov | Entered Proximity Caves 3656 | -4/Proximity Caves | Found Prototype Launcher 3656 | -4/Proximity Caves | Identified Rocket Array 3668 | -4/Proximity Caves | Discovered new exit (range 14) 3725 | -4/Proximity Caves | Entered Factory 3725 | -4/Factory | Evolved 2 slots: Propulsion x1, Utility x1 3726 | -4/Factory | Identified exit to Research 3727 | -4/Factory | Loaded intel: 28 terminal locations 3728 | -4/Factory | Loaded intel: 4 garrison access locations 3733 | -4/Factory | Identified exit to Upper Caves 3733 | -4/Factory | Identified exit to Extension 3795 | -4/Factory | Fabricated Adv. System Shield? 3871 | -4/Factory | Entered Extension 3889 | -4/Extension | Disrupted transfer network 3891 | -4/Extension | Found Prototype Hackware 3891 | -4/Extension | Identified Exp. System Shield 3993 | -4/Extension | Rescued a captive Derelict 4008 | -4/Extension | Rescued a captive Derelict 4009 | -4/Extension | Rescued a captive Derelict 4065 | -4/Extension | Spotted B-86 Titan 4075 | -4/Extension | Spotted B-86 Titan 4083 | -4/Extension | Rescued a captive Derelict 4102 | -4/Extension | Rescued A7 4207 | -4/Extension | Found Prototype Protection 4207 | -4/Extension | Identified Med. Regenerative Plating 4272 | -4/Extension | Identified exit to Cetus 4272 | -4/Extension | Central database locked down 4278 | -4/Extension | Discovered exit to Research (range 10) 4337 | -4/Extension | Entered Cetus 4337 | -4/Cetus | Accompanied by 13 allies (A7) 4342 | -4/Cetus | Acquired a Cetus Manufacturing Module code from A7 4347 | -4/Cetus | Spotted Cetus Guard 4349 | -4/Cetus | Spotted Cetus Guard 4349 | -4/Cetus | Spotted Cetus Guard 4350 | -4/Cetus | Spotted Cetus Guard 4356 | -4/Cetus | Allies destroyed Cetus Guard 4362 | -4/Cetus | Allies destroyed Cetus Guard 4362 | -4/Cetus | Destroyed Cetus Guard 4362 | -4/Cetus | Destroyed Cetus Guard 4385 | -4/Cetus | Started Cetus Manufacturing Module 4393 | -4/Cetus | Lost 5 allies 4399 | -4/Cetus | Escorted A7 to Cetus Mainframe 4410 | -4/Cetus | Manufactured an Enhanced Grunt 4435 | -4/Cetus | Manufactured an Enhanced Grunt 4460 | -4/Cetus | Manufactured an Enhanced Grunt 4485 | -4/Cetus | Manufactured an Enhanced Grunt 4510 | -4/Cetus | Manufactured an Enhanced Grunt 4540 | -4/Cetus | Discovered new exit (range 15) 4558 | -4/Cetus | Build established: Wizard-Sprinter 4587 | -4/Cetus | Entered Archives 4587 | -4/Archives | Accompanied by 13 allies (A7) 4592 | -4/Archives | Received a hacking code to weaken MAIN.C 4654 | -4/Archives | Lost 5 allies 4678 | -4/Archives | Discovered exit to Research (range 16) 4831 | -4/Archives | Discovered new exit (range 14) 4840 | -4/Archives | Discovered new exit (range 15) 4923 | -4/Archives | Entered Hub_04(d) 4923 | -4/Hub_04(d) | Accompanied by 7 allies 4990 | -4/Hub_04(d) | Discovered exit to Research (range 15) 5004 | -4/Hub_04(d) | Discovered exit to Research (range 15) 5016 | -4/Hub_04(d) | Lost 3 parts (1n2u) 5042 | -4/Hub_04(d) | Network Hub disabled 5048 | -4/Hub_04(d) | Spotted Lightning 5048 | -4/Hub_04(d) | Spotted Lightning 5060 | -4/Hub_04(d) | Spotted Lightning 5060 | -4/Hub_04(d) | Spotted Lightning 5061 | -4/Hub_04(d) | Spotted Lightning 5063 | -4/Hub_04(d) | Entered Research 5063 | -3/Research | Evolved 2 slots: Propulsion x1, Utility x1 5064 | -3/Research | Identified exit to Armory 5071 | -3/Research | Lost 3 allies 5434 | -3/Research | Identified exit to Testing 5467 | -3/Research | Discovered new exit (range 16) 5572 | -3/Research | Discovered new exit (range 9) 5627 | -3/Research | Spotted B-86 Titan 5640 | -3/Research | Entered Testing 5647 | -3/Testing | Protovariant out of control (PH-RLI76HNBFY) 5647 | -3/Testing | Unleashed a protovariant (PH-RLI76HNBFY) 5670 | -3/Testing | Discovered new exit (range 12) 5780 | -3/Testing | Found Prototype Ballistic Gun 5780 | -3/Testing | Identified Hyp. Multirail 5806 | -3/Testing | Repaired ECM Suite 5856 | -3/Testing | Repaired Cld. Field Propulsion Drive 5878 | -3/Testing | Found Prototype Energy Cannon 5878 | -3/Testing | Identified Potential Cannon 5891 | -3/Testing | Spotted Striker 5896 | -3/Testing | Spotted Striker 5911 | -3/Testing | Destroyed Striker 5917 | -3/Testing | Spotted Alpha 7 5932 | -3/Testing | Destroyed Striker 5992 | -3/Testing | Stole the SGEMP Prototype 6088 | -3/Testing | Found Prototype Launcher 6088 | -3/Testing | Identified Z-bomb Delivery System 6148 | -3/Testing | Entered Research 6148 | -2/Research | Evolved 2 slots: Propulsion x2 6198 | -2/Research | Repaired Hvy. Antimatter Reactor 6240 | -2/Research | Found Prototype Device 6240 | -2/Research | Identified Adv. EM Disruption Field 6304 | -2/Research | Spotted B-90 Cyclops 6373 | -2/Research | Identified exit to Quarantine 6426 | -2/Research | Fabricated Cld. Field Propulsion Drive? 6598 | -2/Research | Repaired Cld. Field Propulsion Drive 6626 | -2/Research | Entered Quarantine 6665 | -2/Quarantine | Build established: Hacker-Sprinter 6688 | -2/Quarantine | Identified exit to Access 6780 | -2/Quarantine | Spotted Alpha 7 6785 | -2/Quarantine | Found Alien Launcher 6795 | -2/Quarantine | Found Alien Artifact 6795 | -2/Quarantine | Identified Phase Armor 6804 | -2/Quarantine | Spotted Fortress 6823 | -2/Quarantine | Discovered new exit (range 6) 6824 | -2/Quarantine | Entered Section 7 6838 | -2/Section 7 | Found Alien Artifact 6838 | -2/Section 7 | Identified Spacefold Activator 6881 | -2/Section 7 | Found Alien Artifact 6881 | -2/Section 7 | Identified Integrity Redistributor 6881 | -2/Section 7 | Used Integrity Redistributor, redistributed integrity from core (-110) 6907 | -2/Section 7 | Found Alien Artifact 6907 | -2/Section 7 | Identified Core Membrane 6907 | -2/Section 7 | Installed Core Membrane, gained immunity to corruption 6915 | -2/Section 7 | Discovered exit to Access (range 22) 6919 | -2/Section 7 | Entered Access 6919 | -1/Access | Evolved 2 slots: Utility x2 6920 | -1/Access | Delivered the SGEMP Prototype to Zhirov 6920 | -1/Access | Zhirov transferred Access data 6921 | -1/Access | Loaded intel: 116 machine locations 6921 | -1/Access | Loaded intel: 87 trap records 6921 | -1/Access | Identified exit to Surface 6921 | -1/Access | Discovered exit to Surface (range 223) 6921 | -1/Access | Identified exit to Command 6921 | -1/Access | Discovered exit to Command (range 119) 7078 | -1/Access | Entered Command 7150 | -1/Command | Spotted Combat Programmer 7150 | -1/Command | Spotted Combat Programmer 7151 | -1/Command | Spotted M Guard 7177 | -1/Command | Met MAIN.C 7177 | -1/Command | Hacked MAIN.C using A7's code 7182 | -1/Command | Identified Sigix Terminator 7183 | -1/Command | Fired Sigix Terminator 7183 | -1/Command | 0b10 Conduit disabled 7188 | -1/Command | Spotted M Guard 7205 | -1/Command | Core integrity fell below 50% 7214 | -1/Command | Core integrity fell below 20% 7219 | -1/Command | Destroyed by M Guard with Cooled Nova Cannon Last Messages --------------- 07208_ Core Membrane filtered system corruption (2). 07209_ MAIN.C reaction time slowed by virus. 07209_ Penetrated by EMDS Slug. 07209_ Core Membrane filtered system corruption (1). 07212_ Penetrated by EMDS Slug. 07212_ Core Membrane filtered system corruption (1). 07212_ EMDS Slug penetrates Earth. 07214_ MAIN.C reaction time slowed by virus. 07215_ Penetrated by EMDS Slug. 07215_ Adv. Hacking Suite destroyed. 07215_ Critical hit (Blast). 07216_ MAIN.C reaction time slowed by virus. 07217_ Penetrated by EMDS Slug. 07218_ MAIN.C reaction time slowed by virus. Map ----- +----------------------------------------------------+ | ??????????????????????####???????????????????????? | | ???????????????????#### ####???????????????????? | | ????????????????#### ####????????????????? | | ??????????????### ###??????????????? | | ???????????#### ####???????????? | | ??????? ?### ###?#???????? | | ???????? # # ????????? | | ????????#" #????????? | | ???????## ##???????? | | ???????# #???????? | | ???????# ;;;;;;;;;;;;;;;;;;;;;;;;;;; #???????? | | ??????## ; ; ##??????? | | ???? ?# ; ;;;;;;;;;;;;;;;;;;;;;;; ; #??????? | | ???" # ; ; ;;;;;;;###????? | | ???" " ; ; ; ; #????? | | ???" " ; ; ;;;;;;;;####### | | ???" ; ; ; ;! Y | | ??"" ; ; ; ; Y | | ? ; ; ; ; n | | ? ; ; ; ;;;;;;;;####### | | ? ; ; ; ; ; #???? | | ??##;;;;;; ; ; ;;;;;;;####???? | | # ; ; ; MMM ; ; ; ;#???? | | # ; ; ; MMM%p ; ; ; ##???? | | # ; ; ; *MMM ; ; ; #????? | | # ; ; ; !p@ ; ; ; #????? | | ? = ; ; ; % ; ; ;##????? | | ?####+;;;;;;;; ; ; ;#?????? | | ????# ; ; ;#?????? | | ????# ; ; ##?????? | | ?? ; ; #??????? | | ?? ##;;;;;; ; ; ##??????? | | ??? ???# ; ; ; ; #???????? | | ???????# ; ; ; ; #???????? | | ???????## ; ;;;;;;;;;;;;;;;;;;;;;;; ; ##???????? | | ????????# ; ; #????????? | | ????????## ;;;;;;;;;;;;;;;;;;;;;;;;;;; ##????????? | | ?????????### ###?????????? | | ???????????# ## ### #??????????? | | ??????????? ??### ###??# #?????????? | | ??????????#?????#### ####?????# ?????????? | | ???????????????????#### ###?????????# ????????? | | ??????????????????????######?????????????????????? | | ?????????????????????????????????????????????????? | | ?????????????????????????????????????????????????? | | ?????????????????????????????????????????????????? | | ?????????????????????????????????????????????????? | | ?????????????????????????????????????????????????? | | ?????????????????????????????????????????????????? | | ?????????????????????????????????????????????????? | +----------------------------------------------------+ Best States ------------- Heat Dissipation 72 Energy Generation 31 Energy Capacity 340 Matter Stores 300 Matter Capacity 300 Sight Range 23 Terrain Scan Range 16 Terrain Scan Density 210 ECM Strength 1 Power Amplification 30 Additional Mass Support 9 Corruption Block 20 Armor Coverage 225 Propulsion Shielding 66 Point Defense Rating 240 Evasion (%) 76 Offensive Hacking 64 Defensive Hacking 44 Authchip Count 1 Item Schematics ----------------- Med. Storage Unit | -5/Factory | Hacked Adv. System Shield | -5/Factory | Scanalyzed Adv. Hacking Suite | -5/Factory | Scanalyzed Assault Drone Bay | -5/Zhirov | Free Exp. Heat Sink | -5/Zhirov | Free Exp. Optical Array | -5/Zhirov | Free Imp. Arc Thrower | -5/Zhirov | Free Cld. Cesium-ion Thruster | -4/Extension | Hacked Matter Neutralizer | -4/Extension | Hacked Enh. Nova Cannon | -3/Research | Hacked Cld. Field Propulsion Drive | -3/Testing | Scanalyzed Lgt. Particle Reactor | -3/Testing | Hacked Lgt. Regenerative Plating | -3/Testing | Hacked Med. Regenerative Plating | -3/Testing | Hacked Hvy. Regenerative Plating | -3/Testing | Hacked Robot Schematics ------------------ None Fabricated ------------ K-01 Serf | x4 | -5/Factory | Preloaded Med. Storage Unit | x1 | -5/Factory | Authchip Adv. System Shield | x1 | -4/Factory Cld. Field Propulsion Drive | x1 | -2/Research Alien Tech Used ----------------- Integrated Dissipator Phase Armor Spacefold Activator Integrity Redistributor Core Membrane Sigix Terminator Achievements -------------- Rampage Special Delivery Challenges ------------ None Game ------ Seed ForceTerrabombBarrier Manual? 0 Play Time 03:41:34 Cumulative 159.8 hours Start 2025.03.18 @ 12:16:01 End 2025.03.18 @ 16:04:16 Sessions 1 Manual Loads 0 Difficulty Rogue Special Mode None Game No. 79 Rogue 79 Adventurer 0 Explorer 0 Win Type - Total 10 Types 4/0/4/0/2/0/0/0/0 Lore% 71 Gallery% 66 Achievement% 60 Wizard Run 0 Options --------- Layout 1 ASCII 0 Keyboard 0 Movement Numpad Keybinds 0 Fullscreen 1 Font 24/Smallcaps Map View 50x35 Zoom Use 0% Tactical HUD 1 Map Filters NONE Filters NONE Steam 1 RUN: 37435533-2f17-44f1-8732-fdd6f29b7d80